Workbook

Sheet Information
E1: GRADISTAT
E2: Version 8.0
E4: A Grain Size Distribution and Statistics Package for the Analysis of
E5: Unconsolidated Sediments by Sieving or Laser Granulometer
E7: Developed by Dr Simon J Blott
E9: Kenneth Pye Associates Ltd.
E10: Crowthorne Enterprise Centre
E11: Old Wokingham Road
E12: Crowthorne
E13: Berkshire RG45 6AW
E14: UK
E16: E-mail: s.blott@kpal.co.uk
E17: Tel/Fax: +44 (0)1344 751610
E61: Instructions on the Use of the GRADISTAT Program

Sheet Single Sample Data Input
B1: Single Sample Data Input Screen | E1: Enter your data in the columns below, and then click the "Calculate
E2: Statistics" button. See the "Information" sheet for more information.
B3: Sample Identity:
B4: Analyst:
B5: Date: | G5: Auto. add
B6: Initial Sample Weight: | D6: (optional) | G6: apertures
G7: at:
B9: Aperture | C9: Class Weight
B10: (microns) | C10: Retained (g or %)
B11: 90000
B12: 63000
B13: 45000
B14: 31500
B15: 22400
B16: 16000
B17: 11200
B18: 8000
B19: 5600
B20: 4000
B21: 2800
B22: 2000
B23: 1400
B24: 1000
B25: 710
B26: 500
B27: 355
B28: 250
B29: 180
B30: 125
B31: 90
B32: 63

Sheet Single Sample Statistics
F2: SAMPLE STATISTICS
B3: SAMPLE IDENTITY: | L3: ANALYST & DATE: | M3: ,
B4: SAMPLE TYPE: | L4: TEXTURAL GROUP:
B5: SEDIMENT NAME:
B7: mm | D7: f | N7: GRAIN SIZE DISTRIBUTION
A8: MODE 1: | I8: GRAVEL: | N8: COARSE SAND:
A9: MODE 2: | I9: SAND: | N9: MEDIUM SAND:
A10: MODE 3: | I10: MUD: | N10: FINE SAND:
A11: D10: | N11: V FINE SAND:
A12: MEDIAN or D50: | I12: V COARSE GRAVEL: | N12: V COARSE SILT:
A13: D90: | I13: COARSE GRAVEL: | N13: COARSE SILT:
A14: (D90 / D10): | I14: MEDIUM GRAVEL: | N14: MEDIUM SILT:
A15: (D90 - D10): | I15: FINE GRAVEL: | N15: FINE SILT:
A16: (D75 / D25): | I16: V FINE GRAVEL: | N16: V FINE SILT:
A17: (D75 - D25): | I17: V COARSE SAND: | N17: CLAY:
C19: METHOD OF MOMENTS | H19: FOLK & WARD METHOD
C20: Arithmetic | E20: Geometric | G20: Logarithmic | H20: Geometric | K20: Logarithmic | N20: Description
C21: mm | E21: mm | G21: f | H21: mm | K21: f
B22: MEAN : | C22: 0 | E22: 1 | G22: 0
B23: SORTING (s): | C23: 0 | E23: 1 | G23: 0
B24: SKEWNESS (Sk):
B25: KURTOSIS (K):

Sheet Multiple Sample Data Input
B1: Multiple Sample Data Input Screen | F1: Enter your data in the columns below, and then click the
F2: "Calculate Statistics" button. Enter Sample Info in the green cells.
B5: Aperture | C5: Class Weight Retained (g or %) in Different Samples
B6: (microns)
B7: Sample Identity:
B8: Analyst:
B9: Date:
B10: Initial Sample Weight:
B11: 90000
B12: 63000
B13: 45000
B14: 31500
B15: 22400
B16: 16000
B17: 11200
B18: 8000
B19: 5600
B20: 4000
B21: 2800
B22: 2000
B23: 1400
B24: 1000
B25: 710
B26: 500
B27: 355
B28: 250
B29: 180
B30: 125
B31: 90
B32: 63

Sheet Multiple Sample Statistics
B2: SAMPLE STATISTICS
B5: ANALYST AND DATE:
B6: SIEVING ERROR:
B7: SAMPLE TYPE:
B8: TEXTURAL GROUP:
B9: SEDIMENT NAME:
A10: METHOD OF | B10: MEAN
A11: MOMENTS | B11: SORTING
A12: Arithmetic (mm) | B12: SKEWNESS
B13: KURTOSIS
A14: METHOD OF | B14: MEAN
A15: MOMENTS | B15: SORTING
A16: Geometric (mm) | B16: SKEWNESS
B17: KURTOSIS
A18: METHOD OF | B18: MEAN
A19: MOMENTS | B19: SORTING
A20: Logarithmic (f) | B20: SKEWNESS
B21: KURTOSIS
A22: FOLK AND | B22: MEAN
A23: WARD METHOD | B23: SORTING
A24: (mm) | B24: SKEWNESS
B25: KURTOSIS
A26: FOLK AND | B26: MEAN
A27: WARD METHOD | B27: SORTING
A28: (f) | B28: SKEWNESS
B29: KURTOSIS
A30: FOLK AND | B30: MEAN:
A31: WARD METHOD | B31: SORTING:
A32: (Description) | B32: SKEWNESS:
B33: KURTOSIS:
B34: MODE 1 (mm):
B35: MODE 2 (mm):
B36: MODE 3 (mm):
B37: MODE 1 (f):
B38: MODE 2 (f):
B39: MODE 3 (f):
B40: D10 (mm):
B41: D50 (mm):
B42: D90 (mm):
B43: (D90 / D10) (mm):
B44: (D90 - D10) (mm):
B45: (D75 / D25) (mm):
B46: (D75 - D25) (mm):
B47: D10 (f):
B48: D50 (f):
B49: D90 (f):
B50: (D90 / D10) (f):
B51: (D90 - D10) (f):
B52: (D75 / D25) (f):
B53: (D75 - D25) (f):
B54: % GRAVEL:
B55: % SAND:
B56: % MUD:
B57: % V COARSE GRAVEL:
B58: % COARSE GRAVEL:
B59: % MEDIUM GRAVEL:
B60: % FINE GRAVEL:
B61: % V FINE GRAVEL:
B62: % V COARSE SAND:
B63: % COARSE SAND:
B64: % MEDIUM SAND:
B65: % FINE SAND:
B66: % V FINE SAND:
B67: % V COARSE SILT:
B68: % COARSE SILT:
B69: % MEDIUM SILT:
B70: % FINE SILT:
B71: % V FINE SILT:
B72: % CLAY:

Sheet Calculations (hidden)
A2: Method of Moments - Logarithmic | C2: Date | D2: Mode | F2: FirstMode | G2: SecondMode | H2: ThirdMode | J2: Print
D3: =LARGE(O30:O250,1) ->  | F3: =LARGE(D6:H6,1) -> 4.938006509 | G3: =LARGE(D6:H6,2) -> 3.719150825 | H3: =LARGE(D6:H6,3) -> 3.614666884 | J3: 100
A4: Mean: | B4: =(SUMIF(I30:I250, ">0")+SUMIF(I30:I250, "<0"))/100 -> 0
A5: Std. Dev. | B5: =SQRT((SUMIF(J30:J250, ">0")+SUMIF(J30:J250, "<0"))/100) -> 0 | D5: ClassMode1 | E5: ClassMode2 | F5: ClassMode3 | G5: Classmode4 | H5: ClassMode5
A6: Skewness | B6: =(SUMIF(K30:K250, ">0")+SUMIF(K30:K250, "<0"))/((100)*(B5)^3) ->  | D6: 3.719150825 | E6: 3.614666884 | F6: 4.938006509
A7: Kurtosis | B7: =(SUMIF(L30:L250, ">0")+SUMIF(L30:L250, "<0"))/((100)*(B5)^4) -> 
D8: Texure | E8: Maximum Frequency
A9: Sum of Sieve Classes | E9: =LARGE(O30:O250,1) -> 
A10: =SUM(G30:G250) -> 0 | D10: Shape | E10: Line
D11: 0 | E11: 0 | G11: =(((2.095-1)/(11-1))*(513.74-43.91))+43.91 -> 95.356385
A12: Sum of Proportion Classes
A13: =SUMIF(N31:N250, ">0") -> 0
A14: Method of Moments - Arithmetic | D14: Method of Moments - Geometric | AB14: Please wait while the
A15: Mean (um) | B15: =(SUMIF(Q30:Q250, ">0")+SUMIF(Q30:Q250, "<0"))/100 -> 0 | D15: Mean (mm) | E15: =10^((SUMIF(V30:V250, ">0")+SUMIF(V30:V250, "<0"))/100) -> 1 | AB15: statistics are calculated
A16: Std. Dev. (um) | B16: =SQRT((SUMIF(R30:R250, ">0")+SUMIF(R30:R250, "<0"))/100) -> 0 | D16: Std. Dev. (mm) | E16: =10^(SQRT((SUMIF(W30:W250, ">0")+SUMIF(W30:W250, "<0"))/100)) -> 1
A17: Skewness (um) | B17: =(SUMIF(S30:S250, ">0")+SUMIF(S30:S250, "<0"))/((100)*(B16)^3) ->  | D17: Skewness (mm) | E17: =(SUMIF(X30:X250, ">0")+SUMIF(X30:X250, "<0"))/((100)*(LOG(E16))^3) -> 
A18: Kurtosis (um) | B18: =(SUMIF(T30:T250, ">0")+SUMIF(T30:T250, "<0"))/((100)*(B16)^4) ->  | D18: Kurtosis (mm) | E18: =(SUMIF(Y30:Y250, ">0")+SUMIF(Y30:Y250, "<0"))/((100)*(LOG(E16))^4) ->  | AB18: Samples remaining: | BL18: 1
A19: Kurtosis (um) - 3 | B19: =B18-3 ->  | D19: Kurtosis (mm) - 3 | E19: =E18-3 -> 
AB20: 0 | BV20: 1
I24: STATISTICS BY METHOD OF MOMENTS | Q24: STATISTICS BY METHOD OF MOMENTS | U24: STATISTICS BY METHOD OF MOMENTS
A25: APERTURE | B25: MID-POINT (m) | C25: APERTURE | D25: MID-POINT (m) | E25: CUM. MASS | F25: CLASS | G25: CLASS | H25: APERTURE | I25: LOGARITHMIC | M25: MID-POINT (m) | N25: NORMALISED | Q25: ARITHMETIC | U25: GEOMETIC
A26: (metric) | B26: (metric) | C26: (PHI Scale) | D26: (PHI Scale) | E26: RETAINED | F26: WEIGHT (f) | G26: WEIGHT | H26: (metric) | M26: (metric) | N26: CLASS WEIGHT
A28: (mm) | B28: (mm) | C28: (PHI) | D28: (PHI) | E28: (%) | F28: (%) | G28: (g) | H28: (mm) | I28: fm | J28: f(m-M)2 | K28: f(m-M)3 | L28: f(m-M)4 | M28: (mm) | N28: (no units) | O28: (%) | Q28: fm | R28: f(m-M)2 | S28: f(m-M)3 | T28: f(m-M)4 | U28: log m | V28: f log m | W28: f(logm-logM)2 | X28: f(logm-logM)3 | Y28: f(logm-logM)4
A30: 90 | C30: =IF(A30=0,IF(B30>0,IF(C29<10,10,-LOG(0,2)),-LOG(0,2)),-LOG(A30,2)) -> -6.491853096 | E30: =F30 ->  | F30: =(G30*100)/$A$10 ->  | H30: =A30*1000 -> 90000 | I30: =D30*F30 ->  | J30: =(F30)*(D30-$B$4)^2 ->  | K30: =(F30)*(D30-$B$4)^3 ->  | L30: =(F30)*(D30-$B$4)^4 ->  | Q30: =(B30*1000)*F30 ->  | R30: =(F30)*((B30*1000)-$B$15)^2 ->  | S30: =(F30)*((B30*1000)-$B$15)^3 ->  | T30: =(F30)*((B30*1000)-$B$15)^4 ->  | V30: =U30*F30 ->  | W30: =(F30)*(U30-LOG($E$15))^2 ->  | X30: =(F30)*(U30-LOG($E$15))^3 ->  | Y30: =(F30)*(U30-LOG($E$15))^4 -> 
A31: 63 | B31: =(A30+A31)/2 -> 76.5 | C31: =IF(A31=0,IF(B31>0,IF(C30<10,10,-LOG(0,2)),-LOG(0,2)),-LOG(A31,2)) -> -5.977279923 | D31: =(C30+C31)/2 -> -6.23456651 | E31: =F31+E30 ->  | F31: =(G31*100)/$A$10 ->  | H31: =A31*1000 -> 63000 | J31: =(F31)*(D31-$B$4)^2 ->  | K31: =(F31)*(D31-$B$4)^3 ->  | L31: =(F31)*(D31-$B$4)^4 ->  | M31: =((2^(-D31))*1000) -> 75299.40239 | O31: =(N31*100)/$A$13 ->  | Q31: =(B31*1000)*F31 ->  | R31: =(F31)*((B31*1000)-$B$15)^2 ->  | S31: =(F31)*((B31*1000)-$B$15)^3 ->  | T31: =(F31)*((B31*1000)-$B$15)^4 ->  | U31: =LOG(((2^(-D31))*1000),10) -> 4.876791529 | V31: =U31*F31 ->  | W31: =(F31)*(U31-LOG($E$15))^2 ->  | X31: =(F31)*(U31-LOG($E$15))^3 ->  | Y31: =(F31)*(U31-LOG($E$15))^4 -> 
A32: 45 | B32: =IF(A32=0,IF(A31>0,IF(B31>0.001,((A31+(2^(-10)))/2),0),0),(A31+A32)/2) -> 54 | C32: -5.491853096 | D32: -5.73456651 | E32: =F32+E31 ->  | H32: 45000 | M32: =((2^(-D32))*1000) -> 53244.71805 | O32: =(N32*100)/$A$13 ->  | U32: 4.726276532
A33: 31.5 | B33: =IF(A33=0,IF(A32>0,IF(B32>0.001,((A32+(2^(-10)))/2),0),0),(A32+A33)/2) -> 38.25 | C33: -4.977279923 | D33: -5.23456651 | H33: 31500 | M33: 37649.70119 | U33: 4.575761534
A34: 22.4 | B34: 26.95 | C34: -4.485426827 | D34: -4.731353375 | H34: 22400 | M34: 26563.13235 | U34: 4.424279286
A35: 16 | B35: 19.2 | C35: -4 | D35: -4.242713414 | H35: 16000 | M35: 18931.45531 | U35: 4.277184
A36: 11.2 | B36: 13.6 | C36: -3.485426827 | D36: -3.742713414 | H36: 11200 | M36: 13386.56042 | U36: 4.126669003
A37: 8 | B37: 9.6 | C37: -3 | D37: -3.242713414 | H37: 8000 | M37: 9465.727653 | U37: 3.976154005
A38: 5.6 | B38: 6.8 | C38: -2.485426827 | D38: -2.742713414 | H38: 5600 | M38: 6693.280212 | U38: 3.825639007
A39: 4 | B39: 4.8 | C39: -2 | D39: -2.242713414 | H39: 4000 | M39: 4732.863826 | U39: 3.675124009
A40: 2.8 | B40: 3.4 | C40: -1.485426827 | D40: -1.742713414 | H40: 2800 | M40: 3346.640106 | U40: 3.524609011
A41: 2 | B41: 2.4 | C41: -1 | D41: -1.242713414 | H41: 2000 | M41: 2366.431913 | U41: 3.374094014
A42: 1.4 | B42: 1.7 | C42: -0.4854268272 | D42: -0.7427134136 | H42: 1400 | M42: 1673.320053 | U42: 3.223579016
A43: 1 | B43: 1.2 | C43: 0 | D43: -0.2427134136 | H43: 1000 | M43: 1183.215957 | U43: 3.073064018
A44: 0.71 | B44: 0.855 | C44: 0.4941090703 | D44: 0.2470545351 | H44: 710 | M44: 842.6149773 | U44: 2.925629174
A45: 0.5 | B45: 0.605 | C45: 1 | D45: 0.7470545351 | H45: 500 | M45: 595.8187644 | U45: 2.775114177
A46: 0.355 | B46: 0.4275 | C46: 1.49410907 | D46: 1.247054535 | H46: 355 | M46: 421.3074887 | U46: 2.624599179
A47: 0.25 | B47: 0.3025 | C47: 2 | D47: 1.747054535 | H47: 250 | M47: 297.9093822 | U47: 2.474084181
A48: 0.18 | B48: 0.215 | C48: 2.473931188 | D48: 2.236965594 | H48: 180 | M48: 212.1320344 | U48: 2.326606257
A49: 0.125 | B49: 0.1525 | C49: 3 | D49: =(C48+C49)/2 -> 2.736965594 | H49: 125 | M49: 150 | U49: 2.176091259
A50: 0.09 | B50: 0.1075 | C50: 3.473931188 | D50: =(C49+C50)/2 -> 3.236965594 | H50: 90 | M50: 106.0660172 | U50: 2.025576261
A51: 0.063 | B51: 0.0765 | C51: 3.988504361 | D51: =(C50+C51)/2 -> 3.731217775 | H51: 63 | M51: 75.29940239 | U51: 1.876791529
A52: 0 | B52: 0.03198828125 | C52: 10 | D52: 6.994252181 | H52: 0 | M52: 7.843687749 | U52: 0.8945202964
A53: 0 | B53: 0 | H53: 0
A54: 0 | B54: 0 | H54: 0
A55: 0 | B55: 0 | H55: 0
A56: 0 | B56: 0 | H56: 0
A57: 0 | B57: 0 | H57: 0
A58: 0 | B58: 0 | H58: 0
A59: 0 | B59: 0 | H59: 0
A60: 0 | B60: 0 | H60: 0
A61: 0 | B61: 0 | H61: 0
A62: 0 | B62: 0 | H62: 0
A63: 0 | B63: 0 | H63: 0
A64: 0 | B64: 0 | H64: 0
A65: 0 | B65: 0 | H65: 0
A66: 0 | B66: 0 | H66: 0
A67: 0 | B67: 0 | H67: 0
A68: 0 | B68: 0 | H68: 0
A69: 0 | B69: 0 | H69: 0
A70: 0 | B70: 0 | H70: 0
A71: 0 | B71: 0 | H71: 0
A72: 0 | B72: 0 | H72: 0
A73: 0 | B73: 0 | H73: 0
A74: 0 | B74: 0 | H74: 0
A75: 0 | B75: 0 | H75: 0
A76: 0 | B76: 0 | H76: 0
A77: 0 | B77: 0 | H77: 0
A78: 0 | B78: 0 | H78: 0
A79: 0 | B79: 0 | H79: 0
A80: 0 | B80: 0 | H80: 0
A81: 0 | B81: 0 | H81: 0
A82: 0 | B82: 0 | H82: 0
A83: 0 | B83: 0 | H83: 0
A84: 0 | B84: 0 | H84: 0
A85: 0 | B85: 0 | H85: 0
A86: 0 | B86: 0 | H86: 0
A87: 0 | B87: 0 | H87: 0
A88: 0 | B88: 0 | H88: 0
A89: 0 | B89: 0 | H89: 0
A90: 0 | B90: 0 | H90: 0
A91: 0 | B91: 0 | H91: 0
A92: 0 | B92: 0 | H92: 0
A93: 0 | B93: 0 | H93: 0
A94: 0 | B94: 0 | H94: 0 | I94: =D94*F94 -> 
A95: 0 | B95: 0 | C95: =IF(A95=0,IF(B95>0,IF(C94<10,10,-LOG(0,2)),-LOG(0,2)),-LOG(A95,2)) ->  | F95: =(G95*100)/$A$10 ->  | H95: =A95*1000 -> 0 | J95: =(F95)*(D95-$B$4)^2 ->  | K95: =(F95)*(D95-$B$4)^3 ->  | L95: =(F95)*(D95-$B$4)^4 ->  | Q95: =(B95*1000)*F95 ->  | R95: =(F95)*((B95*1000)-$B$15)^2 ->  | S95: =(F95)*((B95*1000)-$B$15)^3 ->  | T95: =(F95)*((B95*1000)-$B$15)^4 ->  | U95: =LOG(((2^(-D95))*1000),10) ->  | V95: =U95*F95 ->  | W95: =(F95)*(U95-LOG($E$15))^2 ->  | X95: =(F95)*(U95-LOG($E$15))^3 ->  | Y95: =(F95)*(U95-LOG($E$15))^4 -> 
A96: 0 | B96: 0 | E96: =F96+E95 ->  | H96: 0 | M96: =((2^(-D96))*1000) ->  | O96: =(N96*100)/$A$13 -> 
A97: 0 | B97: =IF(A97=0,IF(A96>0,IF(B96>0.001,((A96+(2^(-10)))/2),0),0),(A96+A97)/2) -> 0 | H97: 0
A98: 0 | B98: 0 | H98: 0
A99: 0 | B99: 0 | H99: 0
A100: 0 | B100: 0 | H100: 0
A101: 0 | B101: 0 | H101: 0
A102: 0 | B102: 0 | H102: 0
A103: 0 | B103: 0 | H103: 0
A104: 0 | B104: 0 | H104: 0
A105: 0 | B105: 0 | H105: 0
A106: 0 | B106: 0 | H106: 0
A107: 0 | B107: 0 | H107: 0
A108: 0 | B108: 0 | H108: 0
A109: 0 | B109: 0 | H109: 0
A110: 0 | B110: 0 | H110: 0
A111: 0 | B111: 0 | H111: 0
A112: 0 | B112: 0 | H112: 0
A113: 0 | B113: 0 | H113: 0
A114: 0 | B114: 0 | H114: 0
A115: 0 | B115: 0 | D115: =(C114+C115)/2 ->  | H115: 0
A116: 0 | B116: 0 | H116: 0
A117: 0 | B117: 0 | H117: 0
A118: 0 | B118: 0 | H118: 0
A119: 0 | B119: 0 | H119: 0
A120: 0 | B120: 0 | H120: 0
A121: 0 | B121: 0 | H121: 0
A122: 0 | B122: 0 | H122: 0
A123: 0 | B123: 0 | H123: 0
A124: 0 | B124: 0 | H124: 0
A125: 0 | B125: 0 | H125: 0
A126: 0 | B126: 0 | H126: 0
A127: 0 | B127: 0 | H127: 0
A128: 0 | B128: 0 | H128: 0
A129: 0 | B129: 0 | H129: 0
A130: 0 | B130: 0 | H130: 0
A131: 0 | B131: 0 | H131: 0
A132: 0 | B132: 0 | H132: 0
A133: 0 | B133: 0 | H133: 0
A134: 0 | B134: 0 | H134: 0
A135: 0 | B135: 0 | H135: 0
A136: 0 | B136: 0 | H136: 0
A137: 0 | B137: 0 | H137: 0
A138: 0 | B138: 0 | H138: 0
A139: 0 | B139: 0 | H139: 0
A140: 0 | B140: 0 | H140: 0
A141: 0 | B141: 0 | H141: 0
A142: 0 | B142: 0 | H142: 0
A143: 0 | B143: 0 | H143: 0
A144: 0 | B144: 0 | H144: 0
A145: 0 | B145: 0 | H145: 0
A146: 0 | B146: 0 | H146: 0
A147: 0 | B147: 0 | H147: 0
A148: 0 | B148: 0 | H148: 0
A149: 0 | B149: 0 | H149: 0
A150: 0 | B150: 0 | H150: 0
A151: 0 | B151: 0 | H151: 0
A152: 0 | B152: 0 | H152: 0
A153: 0 | B153: 0 | H153: 0
A154: 0 | B154: 0 | H154: 0
A155: 0 | B155: 0 | H155: 0
A156: 0 | B156: 0 | H156: 0
A157: 0 | B157: 0 | H157: 0
A158: 0 | B158: 0 | H158: 0 | I158: =D158*F158 -> 
A159: 0 | B159: 0 | C159: =IF(A159=0,IF(B159>0,IF(C158<10,10,-LOG(0,2)),-LOG(0,2)),-LOG(A159,2)) ->  | F159: =(G159*100)/$A$10 ->  | H159: =A159*1000 -> 0 | J159: =(F159)*(D159-$B$4)^2 ->  | K159: =(F159)*(D159-$B$4)^3 ->  | L159: =(F159)*(D159-$B$4)^4 ->  | Q159: =(B159*1000)*F159 ->  | R159: =(F159)*((B159*1000)-$B$15)^2 ->  | S159: =(F159)*((B159*1000)-$B$15)^3 ->  | T159: =(F159)*((B159*1000)-$B$15)^4 ->  | U159: =LOG(((2^(-D159))*1000),10) ->  | V159: =U159*F159 ->  | W159: =(F159)*(U159-LOG($E$15))^2 ->  | X159: =(F159)*(U159-LOG($E$15))^3 ->  | Y159: =(F159)*(U159-LOG($E$15))^4 -> 
A160: 0 | B160: 0 | E160: =F160+E159 ->  | H160: 0 | M160: =((2^(-D160))*1000) ->  | O160: =(N160*100)/$A$13 -> 
A161: 0 | B161: =IF(A161=0,IF(A160>0,IF(B160>0.001,((A160+(2^(-10)))/2),0),0),(A160+A161)/2) -> 0 | H161: 0
A162: 0 | B162: 0 | H162: 0
A163: 0 | B163: 0 | H163: 0
A164: 0 | B164: 0 | H164: 0
A165: 0 | B165: 0 | H165: 0
A166: 0 | B166: 0 | H166: 0
A167: 0 | B167: 0 | H167: 0
A168: 0 | B168: 0 | H168: 0
A169: 0 | B169: 0 | H169: 0
A170: 0 | B170: 0 | H170: 0
A171: 0 | B171: 0 | H171: 0
A172: 0 | B172: 0 | H172: 0
A173: 0 | B173: 0 | H173: 0
A174: 0 | B174: 0 | H174: 0
A175: 0 | B175: 0 | H175: 0
A176: 0 | B176: 0 | H176: 0
A177: 0 | B177: 0 | H177: 0
A178: 0 | B178: 0 | H178: 0
A179: 0 | B179: 0 | D179: =(C178+C179)/2 ->  | H179: 0
A180: 0 | B180: 0 | H180: 0
A181: 0 | B181: 0 | H181: 0
A182: 0 | B182: 0 | H182: 0
A183: 0 | B183: 0 | H183: 0
A184: 0 | B184: 0 | H184: 0
A185: 0 | B185: 0 | H185: 0
A186: 0 | B186: 0 | H186: 0
A187: 0 | B187: 0 | H187: 0
A188: 0 | B188: 0 | H188: 0
A189: 0 | B189: 0 | H189: 0
A190: 0 | B190: 0 | H190: 0
A191: 0 | B191: 0 | H191: 0
A192: 0 | B192: 0 | H192: 0
A193: 0 | B193: 0 | H193: 0
A194: 0 | B194: 0 | H194: 0
A195: 0 | B195: 0 | H195: 0
A196: 0 | B196: 0 | H196: 0
A197: 0 | B197: 0 | H197: 0
A198: 0 | B198: 0 | H198: 0
A199: 0 | B199: 0 | H199: 0
A200: 0 | B200: 0 | H200: 0
A201: 0 | B201: 0 | H201: 0
A202: 0 | B202: 0 | H202: 0
A203: 0 | B203: 0 | H203: 0
A204: 0 | B204: 0 | H204: 0
A205: 0 | B205: 0 | H205: 0
A206: 0 | B206: 0 | H206: 0
... 44 more rows
